[Event "*** Titled Tuesday Blitz"]
[Site "Chess.com"]
[Date "2019.06.04"]
[Round "3"]
[White "RojonR"]
[Black "NemtsevIgor"]
[Result "1-0"]
[WhiteElo "2386"]
[BlackElo "2266"]
[TimeControl "180+2"]
[EndTime "13:35:28 PDT"]
[Termination "RojonR won by resignation"]

1. e4 {[%clk 0:03:01.9]} 1... c6 {[%clk 0:03:00.8]} 2. d4 {[%clk 0:03:00.3]}
2... d6 {[%clk 0:03:02]} 3. f4 {[%clk 0:02:58.8]} 3... Nd7 {[%clk 0:03:02.9]} 4.
Nf3 {[%clk 0:02:59.5]} 4... h6 {[%clk 0:03:04.4]} 5. e5 {[%clk 0:02:59.5]} 5...
Nb6 {[%clk 0:02:41.2]} 6. c4 {[%clk 0:02:40.8]} 6... g5 {[%clk 0:02:35.2]} 7.
fxg5 {[%clk 0:02:35]} 7... hxg5 {[%clk 0:02:36.2]} 8. Bxg5 {[%clk 0:02:33.1]}
8... dxe5 {[%clk 0:02:37.3]} 9. Nxe5 {[%clk 0:02:27.9]} 9... f6 {[%clk
0:02:14.1]} 10. Ng6 {[%clk 0:01:57.4]} 10... Rh7 {[%clk 0:02:14.5]} 11. Bd3
{[%clk 0:01:38.1]} 11... Rg7 {[%clk 0:01:41.6]} 12. Be3 {[%clk 0:00:52.8]} 12...
f5 {[%clk 0:01:26.7]} 13. Ne5 {[%clk 0:00:43.6]} 13... Nf6 {[%clk 0:01:21.4]}
14. O-O {[%clk 0:00:36]} 14... Be6 {[%clk 0:01:20.4]} 15. Nc3 {[%clk 0:00:31.6]}
15... Qd6 {[%clk 0:00:56.9]} 16. b3 {[%clk 0:00:21]} 16... O-O-O {[%clk
0:00:52.5]} 17. Bxf5 {[%clk 0:00:21.7]} 17... Bxf5 {[%clk 0:00:52.9]} 18. Rxf5
{[%clk 0:00:23.6]} 18... Nbd7 {[%clk 0:00:45.3]} 19. Qf3 {[%clk 0:00:20.7]}
19... Nxe5 {[%clk 0:00:43.7]} 20. dxe5 {[%clk 0:00:21.5]} 20... Qd3 {[%clk
0:00:38.2]} 21. Rd1 {[%clk 0:00:21.4]} 21... Qxc3 {[%clk 0:00:38.3]} 22. Rxd8+
{[%clk 0:00:22]} 22... Kxd8 {[%clk 0:00:36.6]} 23. Bb6+ {[%clk 0:00:23.9]} 23...
axb6 {[%clk 0:00:37.2]} 24. Qxc3 {[%clk 0:00:25.8]} 24... Ng4 {[%clk 0:00:38.3]}
25. Rxf8+ {[%clk 0:00:23.4]} 25... Kd7 {[%clk 0:00:39.2]} 26. e6+ {[%clk
0:00:23.9]} 26... Kxe6 {[%clk 0:00:39.4]} 27. Qxg7 {[%clk 0:00:25.8]} 1-0

[Event "*** Titled Tuesday Blitz"]
[Site "Chess.com"]
[Date "2019.06.04"]
[Round "3"]
[White "JoachimMouhamad"]
[Black "babadroga92"]
[Result "0-1"]
[WhiteElo "2332"]
[BlackElo "2598"]
[TimeControl "180+2"]
[EndTime "13:35:29 PDT"]
[Termination "babadroga92 won by resignation"]

1. e4 {[%clk 0:03:01.8]} 1... c5 {[%clk 0:03:00.6]} 2. Nf3 {[%clk 0:03:03.2]}
2... Nc6 {[%clk 0:03:01]} 3. d4 {[%clk 0:03:04.9]} 3... cxd4 {[%clk 0:03:02.9]}
4. Nxd4 {[%clk 0:03:06.8]} 4... Nf6 {[%clk 0:03:04.5]} 5. Nc3 {[%clk 0:03:08]}
5... e5 {[%clk 0:03:06.1]} 6. Ndb5 {[%clk 0:03:09.5]} 6... d6 {[%clk 0:03:07.7]}
7. Bg5 {[%clk 0:03:10.9]} 7... a6 {[%clk 0:03:08.9]} 8. Na3 {[%clk 0:03:12.2]}
8... b5 {[%clk 0:03:10.5]} 9. Nd5 {[%clk 0:03:13.7]} 9... Be7 {[%clk 0:03:11.7]}
10. Bxf6 {[%clk 0:03:15.4]} 10... Bxf6 {[%clk 0:03:13.6]} 11. c3 {[%clk
0:03:17.3]} 11... O-O {[%clk 0:03:14.3]} 12. Nc2 {[%clk 0:03:18.2]} 12... Bg5
{[%clk 0:03:15.6]} 13. a4 {[%clk 0:03:19]} 13... Rb8 {[%clk 0:03:14.6]} 14. axb5
{[%clk 0:03:14.9]} 14... axb5 {[%clk 0:03:16.5]} 15. Bd3 {[%clk 0:03:08.1]}
15... Be6 {[%clk 0:03:17]} 16. Ncb4 {[%clk 0:03:08.5]} 16... Nxb4 {[%clk
0:03:10.6]} 17. Nxb4 {[%clk 0:03:07.8]} 17... Qd7 {[%clk 0:03:11.7]} 18. O-O
{[%clk 0:03:04.4]} 18... Bd8 {[%clk 0:02:50.1]} 19. Bc2 {[%clk 0:02:54.7]} 19...
Bb6 {[%clk 0:02:49]} 20. Bb3 {[%clk 0:02:55.4]} 20... Bc5 {[%clk 0:02:46.6]} 21.
Nd5 {[%clk 0:02:52.2]} 21... b4 {[%clk 0:02:27.2]} 22. cxb4 {[%clk 0:02:36.9]}
22... Bxb4 {[%clk 0:02:20.3]} 23. Qd3 {[%clk 0:02:27.7]} 23... Bc5 {[%clk
0:02:18]} 24. Ra2 {[%clk 0:02:13.5]} 24... Bd4 {[%clk 0:02:18.2]} 25. Rb1 {[%clk
0:01:57.2]} 25... h6 {[%clk 0:02:18.2]} 26. Bc4 {[%clk 0:01:54.3]} 26... Kh8
{[%clk 0:02:11.1]} 27. b4 {[%clk 0:01:55.5]} 27... f5 {[%clk 0:02:12.2]} 28. Ne3
{[%clk 0:01:41]} 28... Bxc4 {[%clk 0:01:55.4]} 29. Qxc4 {[%clk 0:01:39]} 29...
fxe4 {[%clk 0:01:42.7]} 30. b5 {[%clk 0:01:40.2]} 30... Bxe3 {[%clk 0:01:38.5]}
31. fxe3 {[%clk 0:01:41.1]} 31... d5 {[%clk 0:01:40.1]} 32. Qe2 {[%clk
0:01:37.6]} 32... d4 {[%clk 0:01:34.1]} 33. exd4 {[%clk 0:01:38.9]} 33... Qxd4+
{[%clk 0:01:34.2]} 34. Kh1 {[%clk 0:01:40.1]} 34... e3 {[%clk 0:01:34.2]} 35.
Qb2 {[%clk 0:01:13.1]} 35... Rf2 {[%clk 0:01:16.8]} 36. Qb3 {[%clk 0:01:14.4]}
36... e2 {[%clk 0:00:55.9]} 37. h3 {[%clk 0:01:00.8]} 37... Rf1+ {[%clk
0:00:54.8]} 38. Kh2 {[%clk 0:01:00.5]} 38... Qf4+ {[%clk 0:00:56.1]} 0-1

[Event "*** Titled Tuesday Blitz"]
[Site "Chess.com"]
[Date "2019.06.04"]
[Round "3"]
[White "enriquetejedor"]
[Black "ristingho"]
[Result "1-0"]
[WhiteElo "2560"]
[BlackElo "2510"]
[TimeControl "180+2"]
[EndTime "13:35:48 PDT"]
[Termination "enriquetejedor won by resignation"]

1. b3 {[%clk 0:02:59.8]} 1... d5 {[%clk 0:02:57.3]} 2. Bb2 {[%clk 0:03:01.7]}
2... Bg4 {[%clk 0:02:51.7]} 3. h3 {[%clk 0:03:02]} 3... Bh5 {[%clk 0:02:49.9]}
4. f4 {[%clk 0:03:03.6]} 4... Bg6 {[%clk 0:02:51.4]} 5. d3 {[%clk 0:03:01.7]}
5... e6 {[%clk 0:02:38.8]} 6. e3 {[%clk 0:03:01]} 6... Qh4+ {[%clk 0:02:37.9]}
7. Ke2 {[%clk 0:03:02.2]} 7... Bh5+ {[%clk 0:02:23.6]} 8. g4 {[%clk 0:02:54.7]}
8... Bxg4+ {[%clk 0:02:20.7]} 9. hxg4 {[%clk 0:02:56.6]} 9... Qxh1 {[%clk
0:02:21]} 10. Nh3 {[%clk 0:02:51.4]} 10... Qh2+ {[%clk 0:02:18.3]} 11. Nf2
{[%clk 0:02:34.8]} 11... Nf6 {[%clk 0:02:11.8]} 12. Bxf6 {[%clk 0:02:32.6]}
12... gxf6 {[%clk 0:02:12]} 13. Nd2 {[%clk 0:02:34.5]} 13... h5 {[%clk
0:02:12.1]} 14. Nf3 {[%clk 0:02:30.6]} 14... Qg3 {[%clk 0:02:04.9]} 15. g5
{[%clk 0:02:17.8]} 15... fxg5 {[%clk 0:02:00.1]} 16. Nxg5 {[%clk 0:01:52.4]}
16... Be7 {[%clk 0:01:56.4]} 17. Nf3 {[%clk 0:01:49.7]} 17... h4 {[%clk
0:01:49.8]} 18. Bh3 {[%clk 0:01:49.8]} 18... Nd7 {[%clk 0:01:43.6]} 19. c4
{[%clk 0:01:39.1]} 19... dxc4 {[%clk 0:01:39.2]} 20. bxc4 {[%clk 0:01:30.6]}
20... O-O-O {[%clk 0:01:23.5]} 21. Qa4 {[%clk 0:01:28.3]} 21... Kb8 {[%clk
0:01:23.4]} 22. Rg1 {[%clk 0:01:27.1]} 22... Nc5 {[%clk 0:01:23.3]} 23. Qc2
{[%clk 0:01:19]} 23... Rhg8 {[%clk 0:01:21.1]} 24. Rxg3 {[%clk 0:01:18.1]} 24...
hxg3 {[%clk 0:01:23]} 25. d4 {[%clk 0:01:13.9]} 25... gxf2 {[%clk 0:01:19.2]}
26. dxc5 {[%clk 0:01:12.8]} 26... Bxc5 {[%clk 0:01:13.8]} 27. Kxf2 {[%clk
0:01:04.4]} 27... Rh8 {[%clk 0:01:06]} 28. Bg2 {[%clk 0:01:01.3]} 28... Rd6
{[%clk 0:01:00.6]} 29. Ne5 {[%clk 0:01:00.3]} 29... Rhd8 {[%clk 0:00:55]} 30.
Ke2 {[%clk 0:01:00.2]} 30... f6 {[%clk 0:00:35.4]} 31. Nf7 {[%clk 0:00:57]}
31... Rg8 {[%clk 0:00:36.4]} 32. Qh7 {[%clk 0:00:47.9]} 32... Rxg2+ {[%clk
0:00:36.9]} 33. Kf3 {[%clk 0:00:48.7]} 33... Rgd2 {[%clk 0:00:26.4]} 34. Qg8+
{[%clk 0:00:46.6]} 34... Rd8 {[%clk 0:00:26.5]} 35. Nxd8 {[%clk 0:00:47.7]} 1-0

[Event "*** Titled Tuesday Blitz"]
[Site "Chess.com"]
[Date "2019.06.04"]
[Round "3"]
[White "Bad4life"]
[Black "Gabix_94"]
[Result "0-1"]
[WhiteElo "2449"]
[BlackElo "2653"]
[TimeControl "180+2"]
[EndTime "13:35:51 PDT"]
[Termination "Gabix_94 won by resignation"]

1. e4 {[%clk 0:03:01.9]} 1... c5 {[%clk 0:03:00]} 2. Nf3 {[%clk 0:03:02.5]} 2...
e6 {[%clk 0:02:59.1]} 3. d4 {[%clk 0:03:02.2]} 3... cxd4 {[%clk 0:03:01]} 4.
Nxd4 {[%clk 0:03:04.1]} 4... Nc6 {[%clk 0:03:02.1]} 5. Nc3 {[%clk 0:03:00.8]}
5... Qc7 {[%clk 0:03:03.3]} 6. Be3 {[%clk 0:03:00.3]} 6... a6 {[%clk 0:03:04.2]}
7. a3 {[%clk 0:03:01.7]} 7... b5 {[%clk 0:03:02.4]} 8. f4 {[%clk 0:03:02.5]}
8... Bb7 {[%clk 0:03:03.2]} 9. Qf3 {[%clk 0:03:03.2]} 9... Nf6 {[%clk
0:03:03.8]} 10. Bd3 {[%clk 0:03:03.2]} 10... Be7 {[%clk 0:03:03]} 11. O-O {[%clk
0:03:03.2]} 11... O-O {[%clk 0:03:03.5]} 12. Kh1 {[%clk 0:03:04.6]} 12... Rac8
{[%clk 0:03:03.9]} 13. h3 {[%clk 0:03:03]} 13... d6 {[%clk 0:03:04.8]} 14. Rae1
{[%clk 0:03:02.8]} 14... Rfe8 {[%clk 0:02:56.5]} 15. Qg3 {[%clk 0:03:01.6]}
15... g6 {[%clk 0:02:52.1]} 16. Nxc6 {[%clk 0:02:58.1]} 16... Qxc6 {[%clk
0:02:51.8]} 17. Bd4 {[%clk 0:02:40.6]} 17... Rf8 {[%clk 0:02:48]} 18. Re2 {[%clk
0:02:39.4]} 18... Nh5 {[%clk 0:02:47.6]} 19. Qg4 {[%clk 0:02:32]} 19... Bf6
{[%clk 0:02:40.1]} 20. e5 {[%clk 0:02:28.2]} 20... dxe5 {[%clk 0:02:41]} 21.
fxe5 {[%clk 0:02:18.1]} 21... Bg7 {[%clk 0:02:41]} 22. Be4 {[%clk 0:02:18.6]}
22... Qc7 {[%clk 0:02:40.5]} 23. Bxb7 {[%clk 0:02:17.8]} 23... Qxb7 {[%clk
0:02:42.4]} 24. Ne4 {[%clk 0:02:04.9]} 24... Rfd8 {[%clk 0:02:37.6]} 25. Nd6
{[%clk 0:02:02.2]} 25... Rxd6 {[%clk 0:02:36.2]} 26. exd6 {[%clk 0:01:57]} 26...
Bxd4 {[%clk 0:02:38.1]} 27. Rxe6 {[%clk 0:01:51.3]} 27... fxe6 {[%clk
0:02:35.3]} 28. Qxe6+ {[%clk 0:01:52.4]} 28... Kh8 {[%clk 0:02:25.5]} 29. Rf3
{[%clk 0:01:35.1]} 29... Rd8 {[%clk 0:02:18.6]} 30. Qe7 {[%clk 0:01:30.7]} 30...
Qb8 {[%clk 0:02:01.9]} 31. Rf7 {[%clk 0:01:22]} 31... Bg7 {[%clk 0:02:02.6]} 32.
Qc7 {[%clk 0:00:52.3]} 32... Ng3+ {[%clk 0:01:53.5]} 33. Kh2 {[%clk 0:00:53]}
33... Nf5 {[%clk 0:01:54.6]} 34. g4 {[%clk 0:00:31.9]} 34... Be5+ {[%clk
0:01:50.3]} 35. Kg1 {[%clk 0:00:28.5]} 35... Qxc7 {[%clk 0:01:43.2]} 36. dxc7
{[%clk 0:00:27.2]} 36... Rc8 {[%clk 0:01:44.5]} 37. gxf5 {[%clk 0:00:27.2]}
37... Rxc7 {[%clk 0:01:45.8]} 38. fxg6 {[%clk 0:00:11.8]} 38... Rxf7 {[%clk
0:01:39.4]} 39. gxf7 {[%clk 0:00:13.1]} 39... Kg7 {[%clk 0:01:41.1]} 40. b3
{[%clk 0:00:14.1]} 40... Kxf7 {[%clk 0:01:42]} 41. c4 {[%clk 0:00:14.3]} 41...
bxc4 {[%clk 0:01:43]} 42. bxc4 {[%clk 0:00:15.7]} 42... Bd6 {[%clk 0:01:44.9]}
43. a4 {[%clk 0:00:16.4]} 43... Bc5+ {[%clk 0:01:46.8]} 44. Kg2 {[%clk 0:00:18]}
44... Ke6 {[%clk 0:01:48.7]} 45. Kf3 {[%clk 0:00:19.9]} 45... Kf5 {[%clk
0:01:50.1]} 46. Ke2 {[%clk 0:00:18.5]} 46... Ke4 {[%clk 0:01:50.8]} 0-1

[Event "*** Titled Tuesday Blitz"]
[Site "Chess.com"]
[Date "2019.06.04"]
[Round "3"]
[White "KazakhFighter04"]
[Black "FMJoseHerrera"]
[Result "1-0"]
[WhiteElo "2628"]
[BlackElo "2615"]
[TimeControl "180+2"]
[EndTime "13:36:02 PDT"]
[Termination "KazakhFighter04 won by checkmate"]

1. e4 {[%clk 0:03:01.9]} 1... c5 {[%clk 0:02:59.4]} 2. Nf3 {[%clk 0:03:03]} 2...
e6 {[%clk 0:02:59.9]} 3. d4 {[%clk 0:03:04]} 3... cxd4 {[%clk 0:03:01.8]} 4.
Nxd4 {[%clk 0:03:05.8]} 4... a6 {[%clk 0:03:03.3]} 5. c4 {[%clk 0:03:04.8]} 5...
Qc7 {[%clk 0:03:04.8]} 6. Nc3 {[%clk 0:03:04.5]} 6... b6 {[%clk 0:03:05.4]} 7.
f3 {[%clk 0:03:03.8]} 7... Bb7 {[%clk 0:03:06.6]} 8. Be3 {[%clk 0:03:05.1]} 8...
Nf6 {[%clk 0:03:08]} 9. Be2 {[%clk 0:03:06]} 9... d6 {[%clk 0:03:09.4]} 10. O-O
{[%clk 0:03:06.6]} 10... h5 {[%clk 0:03:10.5]} 11. a4 {[%clk 0:03:06.7]} 11...
Nbd7 {[%clk 0:03:11.4]} 12. a5 {[%clk 0:03:07.7]} 12... bxa5 {[%clk 0:03:12.7]}
13. Nb3 {[%clk 0:03:08.4]} 13... Rb8 {[%clk 0:03:10.7]} 14. Nxa5 {[%clk
0:03:09.2]} 14... Ba8 {[%clk 0:03:12.2]} 15. Qd2 {[%clk 0:03:09.8]} 15... Be7
{[%clk 0:03:12.9]} 16. b4 {[%clk 0:03:10.5]} 16... h4 {[%clk 0:03:08.5]} 17. b5
{[%clk 0:03:05.4]} 17... h3 {[%clk 0:03:03.2]} 18. g3 {[%clk 0:03:03.5]} 18...
Nc5 {[%clk 0:01:51.5]} 19. bxa6 {[%clk 0:02:56.5]} 19... Nxa6 {[%clk 0:01:53.4]}
20. Nb5 {[%clk 0:02:56.2]} 20... Qd7 {[%clk 0:01:48.8]} 21. Rfd1 {[%clk
0:02:56.3]} 21... d5 {[%clk 0:01:31.5]} 22. cxd5 {[%clk 0:02:49.2]} 22... exd5
{[%clk 0:01:32.7]} 23. e5 {[%clk 0:02:50.1]} 23... Nh5 {[%clk 0:01:33.2]} 24.
Nd4 {[%clk 0:02:40.8]} 24... Nc5 {[%clk 0:01:24.3]} 25. Rab1 {[%clk 0:02:40.7]}
25... Rxb1 {[%clk 0:01:24.4]} 26. Rxb1 {[%clk 0:02:42.6]} 26... O-O {[%clk
0:01:14.4]} 27. g4 {[%clk 0:02:43.8]} 27... f6 {[%clk 0:00:42.4]} 28. e6 {[%clk
0:02:33]} 28... Qe8 {[%clk 0:00:40.8]} 29. Nf5 {[%clk 0:02:22.2]} 29... Nxe6
{[%clk 0:00:33.1]} 30. gxh5 {[%clk 0:02:23.1]} 30... Bd8 {[%clk 0:00:32.4]} 31.
Ng3 {[%clk 0:02:12.8]} 31... d4 {[%clk 0:00:30.4]} 32. Bf2 {[%clk 0:02:02.9]}
32... Bc7 {[%clk 0:00:31.1]} 33. Nb3 {[%clk 0:01:42.7]} 33... Nf4 {[%clk
0:00:19.5]} 34. Bc4+ {[%clk 0:01:39]} 34... Kh8 {[%clk 0:00:20.4]} 35. Nxd4
{[%clk 0:01:40.1]} 35... Be5 {[%clk 0:00:21.6]} 36. Nde2 {[%clk 0:01:24.3]}
36... Nxh5 {[%clk 0:00:22.7]} 37. Bd5 {[%clk 0:01:16.4]} 37... Nxg3 {[%clk
0:00:19.3]} 38. Nxg3 {[%clk 0:01:14.9]} 38... Qd7 {[%clk 0:00:18.3]} 39. Qb4
{[%clk 0:01:03.2]} 39... Rb8 {[%clk 0:00:18.3]} 40. Qh4# {[%clk 0:01:03.7]} 1-0

[Event "*** Titled Tuesday Blitz"]
[Site "Chess.com"]
[Date "2019.06.04"]
[Round "3"]
[White "VFernandezB"]
[Black "vladimirdamjanovic"]
[Result "0-1"]
[WhiteElo "2343"]
[BlackElo "2497"]
[TimeControl "180+2"]
[EndTime "13:36:02 PDT"]
[Termination "vladimirdamjanovic won by checkmate"]

1. d4 {[%clk 0:03:01.9]} 1... Nf6 {[%clk 0:03:00.2]} 2. Nf3 {[%clk 0:03:03.2]}
2... c5 {[%clk 0:02:56]} 3. c4 {[%clk 0:03:04.2]} 3... cxd4 {[%clk 0:02:56.6]}
4. Nxd4 {[%clk 0:03:05.2]} 4... Nc6 {[%clk 0:02:58.3]} 5. Nc3 {[%clk 0:03:05]}
5... g6 {[%clk 0:02:59.5]} 6. e4 {[%clk 0:03:05]} 6... Nxd4 {[%clk 0:03:00.8]}
7. Qxd4 {[%clk 0:03:04.5]} 7... d6 {[%clk 0:03:01.8]} 8. Be3 {[%clk 0:03:04.7]}
8... Bg7 {[%clk 0:03:03.2]} 9. Qd2 {[%clk 0:03:00.3]} 9... Be6 {[%clk
0:03:02.8]} 10. Be2 {[%clk 0:02:53.2]} 10... Rc8 {[%clk 0:03:03.6]} 11. O-O
{[%clk 0:02:07]} 11... Bxc4 {[%clk 0:03:00.4]} 12. Bxa7 {[%clk 0:01:42.5]} 12...
b6 {[%clk 0:02:53.7]} 13. e5 {[%clk 0:01:40.3]} 13... Nd7 {[%clk 0:02:50.6]} 14.
exd6 {[%clk 0:01:38.5]} 14... O-O {[%clk 0:02:42.2]} 15. Bxc4 {[%clk 0:01:34.7]}
15... Rxc4 {[%clk 0:02:42.3]} 16. Qe2 {[%clk 0:01:36.4]} 16... Qc8 {[%clk
0:02:24.3]} 17. dxe7 {[%clk 0:01:29.5]} 17... Re8 {[%clk 0:02:25.2]} 18. Rad1
{[%clk 0:01:22.9]} 18... Bxc3 {[%clk 0:02:12.9]} 19. bxc3 {[%clk 0:01:23]} 19...
Rc7 {[%clk 0:02:12.5]} 20. Bxb6 {[%clk 0:00:54.8]} 20... Nxb6 {[%clk 0:02:12]}
21. Qb5 {[%clk 0:00:55.6]} 21... Nc4 {[%clk 0:01:36.3]} 22. Rd4 {[%clk 0:00:54]}
22... Rexe7 {[%clk 0:01:28.5]} 23. Rfd1 {[%clk 0:00:55.1]} 23... Kg7 {[%clk
0:01:21]} 24. h4 {[%clk 0:00:38.9]} 24... h5 {[%clk 0:01:07.6]} 25. a4 {[%clk
0:00:34.5]} 25... Rc5 {[%clk 0:00:59.4]} 26. Qb4 {[%clk 0:00:32.6]} 26... Rb7
{[%clk 0:00:56.7]} 27. Rd8 {[%clk 0:00:28.1]} 27... Qc6 {[%clk 0:00:32.2]} 28.
R1d6 {[%clk 0:00:12.8]} 28... Nxd6 {[%clk 0:00:31.6]} 29. Qf4 {[%clk 0:00:13.3]}
29... Rb1+ {[%clk 0:00:25.7]} 30. Kh2 {[%clk 0:00:14.1]} 30... Nf5 {[%clk
0:00:27.3]} 31. g3 {[%clk 0:00:13.8]} 31... Qh1# {[%clk 0:00:26.8]} 0-1

[Event "*** Titled Tuesday Blitz"]
[Site "Chess.com"]
[Date "2019.06.04"]
[Round "3"]
[White "TigranLPetrosyan"]
[Black "Witik"]
[Result "1-0"]
[WhiteElo "2835"]
[BlackElo "2605"]
[TimeControl "180+2"]
[EndTime "13:36:03 PDT"]
[Termination "TigranLPetrosyan won by resignation"]

1. Nf3 {[%clk 0:03:01.9]} 1... d5 {[%clk 0:02:54.3]} 2. g3 {[%clk 0:03:03.8]}
2... c6 {[%clk 0:02:55.4]} 3. Bg2 {[%clk 0:02:29.9]} 3... Bg4 {[%clk 0:02:55.3]}
4. h3 {[%clk 0:02:28]} 4... Bh5 {[%clk 0:02:54.3]} 5. O-O {[%clk 0:02:28.8]}
5... Nd7 {[%clk 0:02:55.4]} 6. d3 {[%clk 0:02:30.6]} 6... Ngf6 {[%clk
0:02:52.9]} 7. Nbd2 {[%clk 0:02:31.4]} 7... e5 {[%clk 0:02:53.8]} 8. e4 {[%clk
0:02:32.4]} 8... Bd6 {[%clk 0:02:54.6]} 9. exd5 {[%clk 0:02:33]} 9... cxd5
{[%clk 0:02:55.7]} 10. c4 {[%clk 0:02:34.6]} 10... O-O {[%clk 0:02:50.6]} 11.
cxd5 {[%clk 0:02:35.5]} 11... Nxd5 {[%clk 0:02:25.1]} 12. Nc4 {[%clk 0:02:36.4]}
12... Bc7 {[%clk 0:02:17.1]} 13. Re1 {[%clk 0:02:37.2]} 13... Re8 {[%clk
0:02:14.1]} 14. Qb3 {[%clk 0:01:54.2]} 14... Nc5 {[%clk 0:00:50.7]} 15. Qa3
{[%clk 0:01:51.8]} 15... Bxf3 {[%clk 0:00:18]} 16. Bxf3 {[%clk 0:01:52.6]} 16...
b6 {[%clk 0:00:18.5]} 17. d4 {[%clk 0:01:33.2]} 17... e4 {[%clk 0:00:17.5]} 18.
Bg2 {[%clk 0:01:34.2]} 18... Nd3 {[%clk 0:00:18.7]} 19. Rxe4 {[%clk 0:01:34.7]}
19... Nxc1 {[%clk 0:00:14.3]} 20. Rxc1 {[%clk 0:01:25.5]} 20... Rxe4 {[%clk
0:00:11.6]} 21. Bxe4 {[%clk 0:01:27.4]} 21... Rc8 {[%clk 0:00:12.6]} 22. Bxd5
{[%clk 0:01:17.4]} 22... Qxd5 {[%clk 0:00:13.6]} 23. Nd6 {[%clk 0:01:18.8]}
23... Rd8 {[%clk 0:00:08.4]} 24. Rxc7 {[%clk 0:01:19.6]} 24... Rxd6 {[%clk
0:00:09.8]} 25. Qxd6 {[%clk 0:01:04.2]} 25... Qxd6 {[%clk 0:00:10.7]} 26. Rc8+
{[%clk 0:01:05.7]} 26... Qf8 {[%clk 0:00:12.6]} 27. Rxf8+ {[%clk 0:01:07.2]}
27... Kxf8 {[%clk 0:00:14.5]} 28. Kg2 {[%clk 0:01:08.6]} 28... Ke7 {[%clk
0:00:16.4]} 29. Kf3 {[%clk 0:01:10.5]} 29... Kd6 {[%clk 0:00:18.1]} 30. Ke4
{[%clk 0:01:06.5]} 30... f5+ {[%clk 0:00:19.2]} 31. Kxf5 {[%clk 0:01:06]} 31...
Kd5 {[%clk 0:00:20.6]} 32. f4 {[%clk 0:01:03]} 32... a5 {[%clk 0:00:21.7]} 33.
g4 {[%clk 0:01:02.9]} 33... a4 {[%clk 0:00:22.3]} 34. g5 {[%clk 0:01:03.9]}
34... b5 {[%clk 0:00:16.2]} 35. a3 {[%clk 0:01:03.7]} 35... Kxd4 {[%clk
0:00:11.5]} 36. g6 {[%clk 0:01:04.9]} 36... h6 {[%clk 0:00:11.2]} 37. Ke6 {[%clk
0:01:06.2]} 37... Kc4 {[%clk 0:00:12.7]} 38. f5 {[%clk 0:01:07.5]} 38... Kb3
{[%clk 0:00:14.6]} 39. f6 {[%clk 0:01:09.4]} 39... Kxb2 {[%clk 0:00:15.7]} 40.
fxg7 {[%clk 0:01:08.3]} 1-0

[Event "*** Titled Tuesday Blitz"]
[Site "Chess.com"]
[Date "2019.06.04"]
[Round "3"]
[White "grzechu96"]
[Black "Fighterman91"]
[Result "1-0"]
[WhiteElo "2582"]
[BlackElo "2754"]
[TimeControl "180+2"]
[EndTime "13:36:16 PDT"]
[Termination "grzechu96 won on time"]

1. e4 {[%clk 0:03:01.9]} 1... c5 {[%clk 0:02:54.3]} 2. Nc3 {[%clk 0:02:53.9]}
2... Nc6 {[%clk 0:02:46.5]} 3. Nge2 {[%clk 0:02:55]} 3... d6 {[%clk 0:02:44.3]}
4. d4 {[%clk 0:02:47.7]} 4... cxd4 {[%clk 0:02:45.7]} 5. Nxd4 {[%clk 0:02:49.6]}
5... Nf6 {[%clk 0:02:47.2]} 6. Bg5 {[%clk 0:02:41.9]} 6... e6 {[%clk 0:02:48.5]}
7. Qd2 {[%clk 0:02:42.1]} 7... a6 {[%clk 0:02:49.8]} 8. O-O-O {[%clk 0:02:42.8]}
8... Bd7 {[%clk 0:02:50.6]} 9. f4 {[%clk 0:02:42.8]} 9... b5 {[%clk 0:02:51.9]}
10. Bxf6 {[%clk 0:02:43.8]} 10... gxf6 {[%clk 0:02:52.7]} 11. Kb1 {[%clk
0:02:38.7]} 11... Qb6 {[%clk 0:02:53.7]} 12. Nxc6 {[%clk 0:02:39.8]} 12... Bxc6
{[%clk 0:02:54.9]} 13. f5 {[%clk 0:02:41.4]} 13... h5 {[%clk 0:02:43.5]} 14. h4
{[%clk 0:02:29.8]} 14... b4 {[%clk 0:02:37.4]} 15. Ne2 {[%clk 0:02:29.4]} 15...
e5 {[%clk 0:02:36.4]} 16. Ng3 {[%clk 0:02:28.7]} 16... Qc5 {[%clk 0:02:24.8]}
17. Bd3 {[%clk 0:01:49.5]} 17... a5 {[%clk 0:02:07.9]} 18. Qe2 {[%clk
0:01:44.1]} 18... a4 {[%clk 0:02:06]} 19. Nxh5 {[%clk 0:01:35.6]} 19... Ke7
{[%clk 0:01:43.8]} 20. g4 {[%clk 0:01:33.2]} 20... a3 {[%clk 0:01:05.3]} 21. Bc4
{[%clk 0:01:33.7]} 21... axb2 {[%clk 0:01:03]} 22. Rh3 {[%clk 0:01:33.2]} 22...
Bh6 {[%clk 0:00:31.4]} 23. Bb3 {[%clk 0:01:19.7]} 23... Bc1 {[%clk 0:00:27]} 24.
g5 {[%clk 0:00:37.4]} 24... Ba4 {[%clk 0:00:07.7]} 25. Nxf6 {[%clk 0:00:33.4]}
25... Kf8 {[%clk 0:00:09.3]} 26. Bxa4 {[%clk 0:00:32.5]} 26... Qa5 {[%clk
0:00:04]} 27. Bb3 {[%clk 0:00:33.4]} 27... Kg7 {[%clk 0:00:04.2]} 28. Nh5+
{[%clk 0:00:31.4]} 28... Kf8 {[%clk 0:00:03.5]} 29. g6 {[%clk 0:00:25.7]} 1-0

[Event "*** Titled Tuesday Blitz"]
[Site "Chess.com"]
[Date "2019.06.04"]
[Round "3"]
[White "soolking67"]
[Black "NMJeevanK"]
[Result "1-0"]
[WhiteElo "2545"]
[BlackElo "2420"]
[TimeControl "180+2"]
[EndTime "13:36:23 PDT"]
[Termination "soolking67 won by checkmate"]

1. d4 {[%clk 0:03:00.8]} 1... d5 {[%clk 0:03:01]} 2. c4 {[%clk 0:03:00.7]} 2...
e6 {[%clk 0:03:02]} 3. Nc3 {[%clk 0:03:01.8]} 3... Bb4 {[%clk 0:03:02.5]} 4.
cxd5 {[%clk 0:02:58.6]} 4... exd5 {[%clk 0:03:03]} 5. Nf3 {[%clk 0:02:56.8]}
5... Nf6 {[%clk 0:02:59.7]} 6. Bf4 {[%clk 0:02:56.1]} 6... O-O {[%clk
0:02:59.8]} 7. e3 {[%clk 0:02:56.9]} 7... Ne4 {[%clk 0:02:56.6]} 8. Qc2 {[%clk
0:02:43.4]} 8... Bf5 {[%clk 0:02:54.5]} 9. Bd3 {[%clk 0:02:42.9]} 9... Re8
{[%clk 0:02:38]} 10. O-O {[%clk 0:02:40.6]} 10... Bxc3 {[%clk 0:02:37.9]} 11.
bxc3 {[%clk 0:02:39]} 11... c6 {[%clk 0:02:38.2]} 12. Rab1 {[%clk 0:02:27]}
12... b6 {[%clk 0:02:37.6]} 13. Ne5 {[%clk 0:02:24.7]} 13... f6 {[%clk
0:02:23.9]} 14. f3 {[%clk 0:02:01]} 14... fxe5 {[%clk 0:02:10.2]} 15. fxe4
{[%clk 0:02:01]} 15... dxe4 {[%clk 0:02:04.7]} 16. Bc4+ {[%clk 0:01:55.7]} 16...
Kh8 {[%clk 0:01:56.9]} 17. Bxe5 {[%clk 0:01:54.8]} 17... Rf8 {[%clk 0:01:31.9]}
18. Rf4 {[%clk 0:01:16.1]} 18... Nd7 {[%clk 0:01:26.2]} 19. Rbf1 {[%clk
0:01:05.4]} 19... Qg5 {[%clk 0:00:45.4]} 20. Qf2 {[%clk 0:00:38.1]} 20... Nxe5
{[%clk 0:00:23.6]} 21. dxe5 {[%clk 0:00:37.7]} 21... g6 {[%clk 0:00:24.1]} 22.
g4 {[%clk 0:00:23.2]} 22... b5 {[%clk 0:00:23.2]} 23. Bb3 {[%clk 0:00:18.5]}
23... h5 {[%clk 0:00:22]} 24. h4 {[%clk 0:00:17.6]} 24... Qe7 {[%clk 0:00:14.5]}
25. gxf5 {[%clk 0:00:18.8]} 25... g5 {[%clk 0:00:09.1]} 26. f6 {[%clk
0:00:11.4]} 26... Qxe5 {[%clk 0:00:09]} 27. Rf5 {[%clk 0:00:11.2]} 27... Qxc3
{[%clk 0:00:02.6]} 28. Rxg5 {[%clk 0:00:11.6]} 28... c5 {[%clk 0:00:03.2]} 29.
Rxh5# {[%clk 0:00:10.4]} 1-0